bitfinex-derivatives/quotes_SOLF0:USTF0_20251119
["timestamp","ask_amount","ask_price","bid_price","bid_amount"]
[1763563267500,0.19,136.76,136.74,0.041092]
[1763563267685,0.19,136.76,136.67,3.28]
[1763563268394,124.16507721,136.81,136.69,3.24]
[1763563268395,0.2,136.8,136.69,3.24]
[1763563268593,0.05601797,136.76,136.69,3.24]
[1763563269194,6.5862,136.75,136.69,3.24]
[1763563269396,0.05601797,136.76,136.73,3.24]
[1763563269592,0.05601797,136.76,136.74,3.24]
[1763563269892,0.05601797,136.76,136.7,105.7221]
[1763563269893,0.04993614,136.76,136.7,105.7221]
[1763563270093,15.82,136.81,136.74,3.24]
[1763563270288,0.05500989,136.79,136.74,105.6947]
[1763563270489,0.05500989,136.79,136.76,9.8251]
[1763563270691,5.93547721,136.9,136.8,3.24]
[1763563270888,6.95780449,136.95,136.83,3.24]
[1763563271103,15.84,136.94,136.85,3.24]
[1763563271494,16.1,136.94,136.85,3.24]
[1763563271689,0.05340365,136.91,136.88,3.28916761]
[1763563272595,8.82462886,137.04,136.9,9.8185]
[1763563272596,21.77547721,137.01,136.9,9.8185]
[1763563272793,124.34337721,137.01,136.9,9.8185]
[1763563273006,124.34337721,137.01,136.9,3.24]
[1763563273007,102.5755,137.0,136.9,3.24]
[1763563273306,6.5748,136.99,136.9,3.24]
[1763563273497,0.31,136.99,136.9,3.24]
[1763563273696,0.05259045,136.96,136.93,0.047629]
[1763563273904,102.5837,136.92,136.82,3.24]
[1763563274196,102.3126,136.94,136.82,3.24]
[1763563274406,6.5775,136.93,136.82,3.24]
[1763563274597,16.08,136.95,136.82,3.24]
[1763563274904,0.05340059,136.9,136.88,3.24]
[1763563275096,118.3826,136.95,136.88,0.04659271]
[1763563275495,0.04627491,136.93,136.88,3.28659271]
[1763563276696,0.04627491,136.93,136.89,3.24]
[1763563276892,15.82,136.95,136.89,3.24]
[1763563276893,0.26,137.04,136.93,3.24]
[1763563277204,0.26,137.04,136.88,0.04659271]
[1763563277205,0.31,137.02,136.88,3.24]
[1763563277406,102.5665,137.01,136.89,3.24]
[1763563277593,123.99997721,137.03,136.92,3.24]
[1763563277594,21.75547721,137.03,136.92,3.24]
[1763563277793,21.75547721,137.03,136.98,3.24]
[1763563277794,15.82,137.03,136.98,3.24]
[1763563277993,118.3282,137.09,136.98,3.24]
[1763563278195,0.36206856,137.02,136.99,0.04898549]
[1763563278406,0.31,137.02,136.94,3.24]
[1763563278596,0.3641135,137.02,136.99,0.0545423]
[1763563278799,0.0541135,137.02,136.99,0.0545423]
[1763563279099,0.0541135,137.02,136.99,3.2945423]
[1763563279400,0.0541135,137.02,136.99,0.0545423]
[1763563279999,0.3641135,137.02,136.99,0.0545423]
[1763563280303,6.575,136.98,136.9,3.24]
[1763563280506,0.31,137.09,136.95,3.24]
[1763563280708,0.31,137.09,136.99,3.24]
[1763563281006,15.82,137.09,137.0,3.24]
[1763563281303,0.35928027,137.06,137.03,0.05251716]
[1763563281606,0.04928027,137.06,137.03,0.05251716]
[1763563281807,0.04928027,137.06,137.03,3.29251716]
[1763563282701,0.04928027,137.06,137.03,0.05251716]
[1763563282898,102.58538027,137.06,136.98,3.24]
[1763563283103,102.2264,137.05,136.98,3.24]
[1763563283297,6.8812,137.06,136.98,3.24]
[1763563283695,0.31,137.06,136.98,3.24]
[1763563283900,0.05102738,137.03,136.98,3.24]
[1763563284201,16.17102738,137.03,136.92,3.26]
[1763563284501,0.05077156,136.99,136.94,3.26]
[1763563284700,0.05077156,136.99,136.94,105.5667]
[1763563285006,0.05077156,136.99,136.95,3.26]
[1763563285705,0.00077156,136.99,136.95,3.26]
[1763563285898,15.82,137.08,136.98,3.26]
[1763563286094,15.82,137.08,137.0,3.26]
[1763563286310,15.82,137.08,137.01,3.26]
[1763563286498,103.44040347,137.13,137.04,3.26]
[1763563286499,1.27000347,137.13,137.04,3.26]
[1763563286697,17.09000347,137.13,137.04,3.26]
[1763563286912,0.04825583,137.1,137.07,0.04742903]
[1763563287606,0.39825583,137.1,137.07,0.04742903]
[1763563288002,6.96785583,137.1,137.07,0.04742903]
[1763563288204,102.58845583,137.1,137.07,0.04742903]
[1763563288402,0.39825583,137.1,137.07,0.04742903]
[1763563288602,6.96755583,137.1,137.07,0.04742903]
[1763563288810,0.39825583,137.1,137.07,0.04742903]
[1763563289207,6.57,137.09,137.0,3.26]
[1763563289413,102.212,137.07,136.96,3.26]
[1763563289709,6.5714,137.06,136.96,3.26]
[1763563290114,15.82,137.07,136.97,3.26]
[1763563290309,0.04686933,137.02,136.99,3.26]
[1763563290710,15.82,137.07,137.01,3.26]
[1763563291712,0.05613884,137.05,137.03,0.04628644]
[1763563291914,0.40613884,137.05,137.03,0.04628644]
[1763563292310,0.40613884,137.05,136.96,3.26]
[1763563292514,6.9221,137.05,136.96,3.26]
[1763563292714,0.35,137.05,136.96,3.26]
[1763563292915,6.9228,137.03,136.92,9.8377]
[1763563293117,0.35,137.03,136.93,3.26]
[1763563293416,0.05471006,136.99,136.93,3.26]
[1763563295214,0.05471006,136.99,136.95,3.26]
[1763563295412,0.05500018,136.98,136.95,3.26]
[1763563295717,0.05500018,136.98,136.95,9.8361]
[1763563295919,0.05500018,136.98,136.96,3.26]
[1763563296421,0.05500018,136.98,136.91,3.26]
[1763563296916,0.05500018,136.98,136.92,9.8377]
[1763563297117,0.05500018,136.98,136.89,102.3421]
[1763563297118,0.05218921,136.96,136.88,3.26]
[1763563297624,16.20218921,136.96,136.88,3.26]
[1763563297921,118.50208921,136.96,136.88,3.26]
[1763563298123,16.20218921,136.96,136.88,3.26]
[1763563298319,6.5764,136.95,136.88,3.26]
[1763563298520,0.39772621,136.93,136.82,3.07]
[1763563298715,0.05462819,136.89,136.82,3.07]
[1763563298913,0.05462819,136.89,136.84,3.07]
[1763563299113,0.05513823,136.88,136.84,3.07]
[1763563299423,6.5766,136.95,136.87,6.58]
[1763563300034,6.5766,136.95,136.86,3.07]
[1763563300224,6.5773,136.94,136.86,3.07]
[1763563300426,0.46575732,136.92,136.89,0.05030513]
[1763563300721,102.744,136.91,136.82,3.07]
[1763563300927,15.8,136.9,136.82,3.07]
[1763563301227,16.21,136.9,136.82,3.07]
[1763563301722,0.05588684,136.87,136.82,3.07]
[1763563301927,0.05588684,136.87,136.84,3.07]
[1763563302318,15.8,136.91,136.87,3.07]
[1763563302923,6.5771,136.94,136.87,3.07]
[1763563303428,0.05427,136.92,136.89,0.0552898]
[1763563303633,0.05427,136.92,136.89,3.1252898]
[1763563304220,0.05427,136.92,136.89,0.0552898]
[1763563304620,0.46427,136.92,136.89,0.0552898]
[1763563305619,0.05427,136.92,136.89,3.1252898]
[1763563305829,0.05427,136.92,136.9,3.07]
[1763563306029,15.8,136.96,136.93,3.07]
[1763563306431,15.8,136.96,136.94,3.07]
[1763563306632,0.41,137.01,136.94,3.07]
[1763563307029,0.05454484,136.99,136.96,0.05122547]
[1763563307336,0.46454484,136.99,136.96,0.05122547]
[1763563307538,7.03944484,136.99,136.96,0.05122547]
[1763563307838,0.41,136.98,136.9,3.07]
[1763563308825,0.04674975,136.95,136.93,0.05505332]
[1763563309040,0.04674975,136.95,136.93,3.12505332]
[1763563309931,0.04674975,136.95,136.93,0.05505332]
[1763563310128,15.82,137.01,136.93,0.05505332]
[1763563310129,15.82,137.01,136.94,9.8371864]
[1763563310331,15.82,137.01,136.95,6.7671864]
[1763563310532,0.41,137.0,136.96,6.7671864]
[1763563310735,0.41,137.0,136.97,6.7671864]
[1763563310936,6.5754,136.98,136.9,3.07]
[1763563311137,0.04852882,136.95,136.93,0.05555775]
[1763563316346,0.04852882,136.95,136.93,3.12555775]
[1763563316546,0.04852882,136.95,136.94,9.6469]
[1763563316752,15.82,137.01,136.94,3.07]
[1763563317749,15.82,137.01,136.91,102.3275]
[1763563317750,0.05372806,136.99,136.96,0.04635042]
[1763563318051,0.51372806,136.99,136.96,0.04635042]
[1763563318244,0.05372806,136.99,136.96,0.04635042]
[1763563318549,0.05372806,136.99,136.96,3.11635042]
[1763563319652,0.05372806,136.99,136.96,0.04635042]
[1763563319945,0.51372806,136.99,136.96,0.04635042]
[1763563320139,0.05372806,136.99,136.96,3.11635042]
[1763563320949,0.05372806,136.99,136.96,105.40615042]
[1763563321145,7.16569178,137.11,136.99,3.07]
[1763563321353,16.26,137.1,137.03,6.5724]
[1763563321543,15.8,137.1,137.03,3.07]
[1763563321741,89.38988761,137.14,137.06,3.07]
[1763563321940,0.46,137.18,137.11,3.07]
[1763563322143,0.04967247,137.11,137.08,3.11614084]
[1763563322454,0.46,137.15,137.04,3.07]
[1763563322747,0.05350634,137.11,137.08,3.11760268]
[1763563322948,0.05350634,137.11,137.09,3.07]
[1763563323555,0.05350634,137.11,137.08,3.11760268]
[1763563323750,0.05350634,137.11,137.08,0.04760268]
[1763563324247,0.51350634,137.11,137.08,0.04760268]
[1763563324649,0.05350634,137.11,137.08,0.04760268]
[1763563325259,0.05350634,137.11,137.08,3.11760268]
[1763563325449,15.8,137.17,137.1,3.07]
[1763563326049,15.8,137.17,137.1,9.6389]
[1763563326248,15.8,137.17,137.1,3.07]
[1763563326452,0.05585782,137.15,137.13,3.07]
[1763563327557,0.05585782,137.15,137.12,0.04809921]
[1763563328155,0.51585782,137.15,137.12,0.04809921]
[1763563328556,0.05585782,137.15,137.12,3.18809921]
[1763563328857,0.05585782,137.15,137.14,3.14]
[1763563329045,6.5637,137.22,137.14,3.14]
[1763563329245,118.3358,137.23,137.14,3.14]
[1763563329445,0.51,137.2,137.08,3.14]
[1763563329653,0.51,137.2,137.09,3.14]
[1763563329855,0.51,137.2,137.11,3.14]
[1763563330163,0.05050185,137.17,137.14,3.19046719]
[1763563331351,0.51,137.16,137.14,0.05046719]
[1763563331559,0.51,137.16,137.05,3.14]
[1763563331760,0.51,137.15,137.05,3.14]
[1763563331943,102.1611,137.14,137.05,3.14]
[1763563332149,0.51,137.12,137.05,3.14]
[1763563332347,0.51,137.08,136.99,3.14]
[1763563332552,117.9618,137.11,137.02,3.18891259]
[1763563332553,0.04877693,137.05,137.02,3.18891259]
[1763563332849,0.04877693,137.05,137.02,3.19402976]
[1763563332850,0.05016447,137.05,137.02,3.19402976]
[1763563333153,0.05016447,137.05,137.02,0.05402976]
[1763563333355,0.56016447,137.05,137.02,0.05402976]
[1763563333852,0.56016447,137.05,136.92,3.14]
[1763563333853,6.5737,137.01,136.92,3.14]
[1763563334060,0.51,137.07,136.93,3.14]
[1763563334243,16.29,137.06,136.95,3.14]
[1763563334446,6.5719,137.05,136.95,3.14]
[1763563334647,16.29,137.06,136.96,3.14]
[1763563334848,0.05571821,137.02,137.0,0.05040547]
[1763563335444,102.2025,137.09,137.0,0.05040547]
[1763563335445,0.51,137.1,137.0,3.19040547]
[1763563335649,0.51,137.14,137.04,3.14]
[1763563335859,6.70569178,137.19,137.04,3.14]
[1763563335860,0.51,137.19,137.07,3.14]
[1763563336156,15.78,137.2,137.11,3.14]
[1763563336359,15.78,137.2,137.12,3.14]
[1763563336657,15.78,137.2,137.1,102.1835]
[1763563336658,0.05312144,137.17,137.15,0.05293137]
[1763563337648,0.05312144,137.17,137.15,3.19293137]
[1763563337848,0.05312144,137.17,137.16,3.14]
[1763563338048,15.78,137.2,137.16,3.14]
[1763563338452,15.78,137.2,137.15,3.19293137]
[1763563338945,1.26898463,137.24,137.15,3.19293137]
[1763563339153,0.04709385,137.21,137.18,0.05127265]
[1763563339354,0.04611256,137.21,137.18,0.05111029]
[1763563340259,0.55611256,137.21,137.18,0.05111029]
[1763563340556,102.6246,137.2,137.11,3.14]
[1763563340760,0.51,137.2,137.11,3.14]
[1763563341561,0.05324633,137.17,137.15,3.14]
[1763563341762,0.05101988,137.17,137.15,3.18878928]
[1763563342359,0.05101988,137.17,137.16,3.14]
[1763563342559,0.51,137.24,137.16,3.14]
[1763563343453,0.04982833,137.21,137.19,0.04776969]
[1763563345255,0.04982833,137.21,137.19,3.31776969]
[1763563346965,15.8,137.25,137.19,3.31776969]
[1763563347455,16.41,137.25,137.19,0.04776969]
[1763563347657,0.61,137.23,137.19,0.04776969]
[1763563348069,0.05052466,137.22,137.19,0.04776969]
[1763563348567,0.66052466,137.22,137.19,0.04776969]
[1763563348863,7.1745,137.2,137.19,0.04776969]
[1763563349365,7.1745,137.2,137.11,3.27]
[1763563349662,102.0663,137.27,137.15,3.27]
[1763563349663,0.61,137.26,137.15,3.27]
[1763563350055,102.7034,137.23,137.15,3.27]
[1763563350255,0.61,137.19,137.18,0.05302275]
[1763563350465,7.1752,137.19,137.11,9.8385]
[1763563350768,102.7344,137.19,137.11,3.27]
[1763563350965,102.7471,137.17,137.07,3.27]
[1763563351263,0.61,137.17,137.07,3.27]
[1763563351471,0.05624713,137.13,137.11,0.05108364]
[1763563351861,0.05624713,137.13,137.11,3.32108364]
[1763563353663,0.05624713,137.13,137.11,0.05108364]
[1763563353868,0.66624713,137.13,137.11,0.05108364]
[1763563354256,0.05624713,137.13,137.11,0.05108364]
[1763563357871,0.05624713,137.13,137.11,3.37108364]
[1763563358077,0.61,137.17,137.11,3.37108364]
[1763563358078,15.78,137.17,137.11,9.93958364]
[1763563358474,15.78,137.17,137.11,3.37108364]
[1763563359065,0.05527374,137.15,137.11,3.37108364]
[1763563359369,0.05527374,137.15,137.11,9.93938364]
[1763563359568,0.05527374,137.15,137.11,3.37108364]
[1763563360575,0.05527374,137.15,137.11,9.93968364]
[1763563361570,0.05527374,137.15,137.14,3.32]
[1763563363166,0.05527374,137.15,137.12,3.32]
[1763563363780,0.64527374,137.15,137.11,0.05108364]
[1763563364573,0.05527374,137.15,137.11,9.93968364]
[1763563364780,0.05527374,137.15,137.11,3.37108364]
[1763563365779,0.59,137.23,137.15,3.32]
[1763563365977,16.37,137.23,137.17,6.5657]
[1763563366478,16.37,137.23,137.15,3.32]
[1763563366876,0.04983678,137.2,137.18,0.04846331]
[1763563367371,0.63983678,137.2,137.18,0.04846331]
[1763563367576,0.04983678,137.2,137.18,0.04846331]
[1763563368884,0.63983678,137.2,137.18,0.04846331]
[1763563371272,0.04983678,137.2,137.18,0.04846331]
[1763563371789,0.59,137.19,137.18,0.04846331]
[1763563372983,7.1555,137.18,137.09,105.5121]
[1763563373168,15.78,137.17,137.09,105.5121]
[1763563373374,16.37,137.17,137.12,9.8882]
[1763563373676,15.78,137.17,137.13,3.32]
[1763563373877,0.04865051,137.16,137.14,9.93825658]
[1763563374083,0.05062088,137.16,137.14,0.05105658]
[1763563374973,0.64062088,137.16,137.14,0.05105658]
[1763563375884,7.20722088,137.16,137.14,0.05105658]
[1763563376083,0.59,137.15,137.08,3.32]
[1763563376980,0.05003433,137.13,137.1,0.04796955]
[1763563377185,0.05003433,137.13,137.1,3.36796955]
[1763563377382,0.05003433,137.13,137.12,3.32]
[1763563377578,6.50190379,137.22,137.12,3.32]
[1763563377879,15.76,137.21,137.14,6.5672]
[1763563378387,6.5645,137.2,137.12,3.32]
[1763563378580,0.05398233,137.17,137.15,0.05029695]
[1763563379186,0.05398233,137.17,137.15,3.37029695]
[1763563379881,0.05398233,137.17,137.15,9.93709695]
[1763563380273,0.05398233,137.17,137.15,3.37029695]
[1763563381276,0.05398233,137.17,137.15,0.05029695]
[1763563381676,0.05398233,137.17,137.15,3.37029695]
[1763563381873,0.05398233,137.17,137.15,0.05029695]
[1763563382482,0.64398233,137.17,137.15,0.05029695]
[1763563382684,0.59,137.15,137.07,9.01060979]
[1763563382875,102.1325,137.18,137.06,3.32]
[1763563382876,16.35,137.14,137.06,3.32]
[1763563383483,15.76,137.16,137.07,3.32]
[1763563383686,0.04659046,137.13,137.1,0.05468153]
[1763563384387,0.04659046,137.13,137.1,3.37468153]
[1763563384580,0.04659046,137.13,137.11,6.5685]
[1763563384775,0.04659046,137.13,137.1,0.05468153]
[1763563385584,0.63659046,137.13,137.1,0.05468153]
[1763563385783,0.59,137.11,137.02,12.33060979]
[1763563386088,0.59,137.09,137.02,3.32]
[1763563386390,15.76,137.1,137.02,3.32]
[1763563386990,0.04627639,137.07,137.05,0.05395942]
[1763563388681,0.62,137.15,137.05,3.36395942]
[1763563388882,0.62,137.15,137.08,105.5129]
[1763563389091,0.62,137.15,137.08,3.31]
[1763563389776,15.76,137.17,137.1,0.04950206]
[1763563389777,0.66680182,137.13,137.1,0.04950206]
[1763563390489,0.62,137.12,137.1,0.04950206]
[1763563391191,15.82680182,137.13,137.1,0.04950206]
[1763563391390,0.04680182,137.13,137.1,0.04950206]
[1763563391780,0.66680182,137.13,137.1,0.04950206]
[1763563393177,0.04680182,137.13,137.1,0.04950206]
[1763563393579,0.04680182,137.13,137.1,6.61870206]
[1763563393787,0.04680182,137.13,137.1,3.35950206]
[1763563394387,0.04680182,137.13,137.1,0.04950206]
[1763563394988,7.23470182,137.13,137.1,0.04950206]
[1763563395195,0.62,137.12,137.1,0.04950206]
[1763563395494,7.1884,137.12,137.1,0.04950206]
[1763563395697,0.62,137.11,137.1,0.04950206]
[1763563395886,22.3484,137.12,137.1,0.04950206]
[1763563395887,16.4,137.12,137.1,0.04950206]
[1763563397095,15.78,137.12,137.1,0.04950206]
[1763563397790,15.78,137.12,137.1,3.35950206]
[1763563397988,0.62,137.2,137.11,3.31]
[1763563398196,15.76,137.19,137.11,3.31]
[1763563398598,15.76,137.19,137.13,6.5678]
[1763563398987,15.76,137.19,137.11,3.31]
[1763563398988,6.5657,137.18,137.11,3.31]
[1763563399292,0.05546629,137.16,137.13,0.05122958]
[1763563399897,0.05546629,137.16,137.13,3.36122958]
[1763563400095,0.05546629,137.16,137.13,0.05122958]
[1763563401596,7.24186629,137.16,137.13,0.05122958]
[1763563401800,0.67546629,137.16,137.13,0.05122958]
[1763563402395,0.05546629,137.16,137.13,0.05122958]
[1763563402598,0.05546629,137.16,137.13,3.36122958]
[1763563402896,0.05546629,137.16,137.14,9.8771]
[1763563403094,0.05546629,137.16,137.15,3.31]
[1763563403801,15.76,137.19,137.15,3.31]
[1763563403991,0.62,137.23,137.15,3.31]
[1763563404190,15.76,137.25,137.19,3.11]
[1763563404899,0.05038354,137.23,137.21,0.05107726]
[1763563405096,0.05038354,137.23,137.21,0.0560986]
[1763563405398,0.67038354,137.23,137.21,0.0560986]
[1763563406091,7.1836,137.22,137.13,3.11]
[1763563406394,0.62,137.22,137.13,3.11]
[1763563406593,0.62,137.2,137.11,3.11]
[1763563406794,15.76,137.19,137.11,3.11]
[1763563406994,15.76,137.19,137.14,0.04837113]
[1763563407197,0.04688377,137.16,137.14,3.15837113]
[1763563407401,0.04688377,137.16,137.14,9.72557113]
[1763563407601,0.04688377,137.16,137.15,3.11]
[1763563408795,5.91190379,137.25,137.15,105.2578]
[1763563409101,0.66,137.25,137.17,3.11]
[1763563409296,0.66,137.25,137.18,3.11]
[1763563410000,0.70707674,137.23,137.2,0.05515606]
[1763563411389,0.04707674,137.23,137.2,0.05515606]
[1763563411590,0.70707674,137.23,137.2,0.05515606]
[1763563412199,0.66,137.21,137.2,0.05515606]
[1763563412801,0.70707674,137.23,137.2,0.05515606]
[1763563413603,0.04707674,137.23,137.2,3.16515606]
[1763563414003,0.04707674,137.23,137.21,6.564]
[1763563414204,0.04707674,137.23,137.2,3.16515606]
[1763563416010,0.04707674,137.23,137.2,0.05515606]
[1763563416212,0.04707674,137.23,137.2,3.16515606]
[1763563416403,0.04707674,137.23,137.2,9.72945606]
[1763563416601,0.04707674,137.23,137.2,3.16515606]
[1763563417610,0.04707674,137.23,137.21,9.6739]
[1763563417807,0.04707674,137.23,137.22,3.06]
[1763563418112,0.66,137.32,137.23,3.06]
[1763563418306,15.76,137.3,137.23,3.06]
[1763563418509,15.76,137.3,137.23,105.1491]
[1763563418714,15.76,137.3,137.2,102.1102]
[1763563418715,15.76,137.3,137.24,3.06]
[1763563419209,0.05428371,137.28,137.26,3.11122284]
[1763563420814,15.76,137.32,137.27,3.06]
[1763563421025,0.72,137.4,137.32,3.06]
[1763563421316,16.48,137.4,137.33,6.558]
[1763563421517,16.48,137.4,137.34,3.06]
[1763563421518,15.76,137.4,137.34,3.06]
[1763563421813,15.76,137.4,137.36,0.0521464]
[1763563422019,101.9249,137.46,137.37,3.06]
[1763563422020,0.04850004,137.38,137.37,3.06]
[1763563422212,0.72,137.46,137.37,3.06]
[1763563422213,0.04626477,137.39,137.37,3.06]
[1763563422409,0.05246088,137.39,137.37,0.04810743]
[1763563423016,0.05246088,137.39,137.37,3.10810743]
[1763563424418,15.74,137.46,137.38,105.0377]
[1763563424622,15.74,137.5,137.39,3.06]
[1763563425020,15.74,137.5,137.41,3.06]
[1763563425218,0.05169303,137.47,137.44,3.11509014]
[1763563425519,0.05169303,137.47,137.44,0.05509014]
[1763563425726,0.77169303,137.47,137.44,0.05509014]
[1763563426020,0.05169303,137.47,137.44,0.05509014]
[1763563426321,0.05169303,137.47,137.44,3.11509014]
[1763563426520,0.77169303,137.47,137.44,0.05509014]
[1763563427611,0.72,137.46,137.36,3.06]
[1763563427824,0.72,137.45,137.36,3.06]
[1763563428019,15.74,137.44,137.36,3.06]
[1763563428229,0.72,137.43,137.36,3.06]
[1763563428409,7.2738,137.43,137.36,3.06]
[1763563429014,0.05211106,137.41,137.38,3.10808042]
[1763563429216,0.7758474,137.41,137.38,0.04853064]
[1763563429515,0.72,137.4,137.38,0.04853064]
[1763563429725,15.7958474,137.41,137.38,3.10853064]
[1763563430021,15.7958474,137.41,137.38,0.04853064]
[1763563430525,16.5158474,137.41,137.38,0.04853064]
[1763563430723,0.72,137.4,137.38,0.04853064]
[1763563431410,15.7958474,137.41,137.38,0.04853064]
[1763563431610,16.5158474,137.41,137.38,0.04853064]
[1763563431814,0.72,137.39,137.3,3.06]
[1763563432809,0.72,137.39,137.33,0.0480462]
[1763563432810,0.05381484,137.36,137.33,0.0480462]
[1763563433214,0.05381484,137.36,137.33,3.1080462]
[1763563436028,0.05381484,137.36,137.33,0.0480462]
[1763563437222,0.05381484,137.36,137.33,3.1080462]
[1763563438015,0.05381484,137.36,137.33,9.6661462]
[1763563438330,0.05381484,137.36,137.34,3.06]
[1763563441418,0.05381484,137.36,137.33,3.1080462]
[1763563441730,0.05381484,137.36,137.33,0.0480462]
[1763563442228,0.77381484,137.36,137.33,0.0480462]
[1763563442434,16.44,137.35,137.27,3.06]
[1763563442731,0.72,137.39,137.31,3.06]
[1763563442934,22.994,137.42,137.34,6.5577]
[1763563443125,0.72,137.41,137.32,3.06]
[1763563443321,0.05431972,137.38,137.32,3.06]
[1763563443524,0.05431972,137.38,137.37,3.06]
[1763563443826,16.44,137.46,137.37,3.06]
[1763563444136,22.9922,137.46,137.39,6.5552]
[1763563444638,16.44,137.46,137.37,3.06]
[1763563444822,0.04857007,137.44,137.41,105.06748941]
[1763563445028,0.05403126,137.44,137.41,3.11477943]
[1763563445230,0.72,137.5,137.43,3.06]
[1763563445734,0.72,137.5,137.45,9.6123]
[1763563445931,0.72,137.5,137.45,3.06]
[1763563446135,15.72,137.51,137.45,3.06]
[1763563446433,0.05043775,137.49,137.47,3.06]
[1763563446641,2.03003734,137.55,137.47,3.06]
[1763563446936,2.75003734,137.55,137.47,3.06]
[1763563447234,7.2686,137.54,137.47,3.06]
[1763563447628,0.05066292,137.52,137.49,0.05110475]
[1763563449139,0.76066292,137.52,137.49,0.05110475]
[1763563449345,0.71,137.5,137.41,3.16]
[1763563449835,16.43,137.5,137.41,3.16]
[1763563450139,16.43,137.5,137.42,9.7137]
[1763563450341,0.04892456,137.47,137.45,0.04770793]
[1763563450843,0.75892456,137.47,137.45,0.04770793]
[1763563451034,0.04892456,137.47,137.45,3.20770793]
[1763563451536,0.04892456,137.47,137.45,0.04770793]
[1763563451930,0.04892456,137.47,137.45,3.20770793]
[1763563452134,0.04892456,137.47,137.45,0.04770793]
[1763563452935,0.75892456,137.47,137.45,0.04770793]
[1763563453140,0.75892456,137.47,137.38,3.16]
[1763563453328,102.6349,137.46,137.38,3.16]
[1763563453536,7.2623,137.46,137.38,3.16]
[1763563453845,0.71,137.46,137.38,3.16]
[1763563454029,15.72,137.47,137.4,3.16]
[1763563454232,0.05540531,137.45,137.42,3.20836232]
[1763563454935,0.05540531,137.45,137.42,0.04836232]
[1763563455138,0.76540531,137.45,137.42,0.04836232]
[1763563456132,7.31810531,137.45,137.42,0.04836232]
[1763563456346,0.76540531,137.45,137.42,0.04836232]
[1763563457248,7.31810531,137.45,137.42,0.04836232]
[1763563457546,0.05540531,137.45,137.42,0.04836232]
[1763563457745,0.05540531,137.45,137.44,3.16]
[1763563457952,16.43,137.52,137.44,3.16]
[1763563458243,15.72,137.52,137.46,6.5518]
[1763563458832,0.0489277,137.5,137.48,0.0544988]
[1763563459543,0.0489277,137.5,137.48,3.2144988]
[1763563459736,2.03003734,137.55,137.48,3.2144988]
[1763563460242,2.03003734,137.55,137.51,3.16]
[1763563460837,0.05498516,137.54,137.52,3.20699959]
[1763563461244,0.05498516,137.54,137.52,0.04699959]
[1763563463042,0.71,137.62,137.53,3.16]
[1763563463248,16.41,137.62,137.53,3.16]
[1763563463449,6.69518174,137.7,137.63,6.5437]
[1763563463652,16.46,137.71,137.63,9.7037]
[1763563464147,0.8048212,137.68,137.66,0.04620594]
[1763563464348,0.80514355,137.68,137.66,0.05116203]
[1763563464535,16.45,137.67,137.59,3.03]
[1763563464737,0.75,137.7,137.59,3.03]
[1763563464945,16.45,137.69,137.59,3.03]
[1763563465247,15.7,137.68,137.61,3.03]
[1763563465646,0.0512664,137.66,137.63,0.04639085]
[1763563466042,0.8012664,137.66,137.63,0.04639085]
[1763563466549,0.0512664,137.66,137.63,0.04639085]
[1763563466846,0.75,137.65,137.63,0.04639085]
[1763563467249,0.0512664,137.66,137.63,0.04639085]
[1763563467449,15.7,137.65,137.63,0.04639085]
[1763563468351,0.0512664,137.66,137.63,0.04639085]
[1763563468545,15.7,137.65,137.63,0.04639085]
[1763563468752,16.45,137.65,137.63,0.04639085]
[1763563468961,0.8012664,137.66,137.63,0.04639085]
[1763563469160,15.7,137.64,137.63,0.04639085]
[1763563469854,16.45,137.64,137.63,0.04639085]